Workbook

Sheet Stammdaten
A3: Um Ihnen die Bewertung Ihrer halbfertigen Arbeiten zu erleichtern ist es notwendig,
A4: einige Parameter Ihres Unternehmens zu erfassen.
A5: Am besten nehmen Sie hierzu die BWA vom Dezember des Vorjahres oder die Bilanz zur Hand.
A6: Wenn Sie mit dem Cursor auf die Felder mit den roten Dreiecken gehen, erscheint ein
A7: Kommentar, was Sie in dieses Feld eintragen müssen bzw. was Excel in dieser Zelle errechnet.
A11: Vorgabewerte aus Ihrem Unternehmen | G11: Werte für die Berechnung der halbfertigen Arbeiten
A14: Betriebsleistung des Vorjahres | D14: 170000 | G14: Sie können diese Werte beliebig überschreiben.
G15: Das System rechnet dann in Zukunft mit Ihren Eingabewerten.
A16: Wareneinsatz des Vorjahres | D16: 80000
G17: Rohertrag/Stunde | I17: =D26 -> 60
A18: Erzielter Rohertrag | D18: =D14-D16 -> 90000
G19: Wareneinsatz/Stunde | I19: =D28 -> 53.33333333
A20: Gewinn vor Steuer | D20: 20000
G21: Abschlag Gewinnanteil | I21: =D30 -> 0.1176470588
A22: Produktive Stunden des Vorjahres | D22: 1500
A24: Erzielte Betriebsleistung/prod. Stunde | D24: =D14/D22 -> 113.3333333
A26: Erzielter Rohertrag/Std. | D26: =D18/D22 -> 60
A28: Durchschnittlicher Wareneinsatz/prod. Stunde | D28: =D16/D22 -> 53.33333333
A30: Abschlag Gewinnanteil | D30: =D20/D14 -> 0.1176470588

Sheet 31.12.2025
A1: Kunde | B1: Auftragssumme | C1: fertig, noch nicht Schluß-gerechnet | D1: gel. Stunden | E1: Material Einkauf+ Fremdleistungen | F1: Lohnleistung | G1: erbrachte Leistungen netto in Euro | H1: Korrektur | I1: Bewertete Leistung | J1: geschriebene Abschlags-Rechnungen | K1: erhaltene Abschlags-Zahlungen | L1: nicht berechnete halbfertige Arbeiten | M1: vorfinanzierte Leistung auf den Baustellen | N1: Fertigstellungsgrad
A2: Summe | B2: =SUM(B3:B103) -> 353000 | D2: =SUM(D3:D103) -> 190 | E2: =SUM(E3:E103) -> 10133.33333 | F2: 11400 | G2: 21533.33333 | H2: 600 | I2: =SUM(I3:I99) -> 20792.15686 | J2: 1500 | K2: 1500 | L2: 19292.15686 | M2: 20633.33333 | N2: =IF(B2>0,G2/B2,"") -> 0.06100094429
A3: Projekt 1 | B3: 80000 | D3: 30 | E3: =D3*Materialeinsatz_pro_Stunde -> 1600 | F3: =D3*Rohertrag_pro_Stunde -> 1800 | G3: =E3+F3 -> 3400 | H3: 2600 | I3: =IF(C3="",E3+H3+F3*(1-Abschlag),G3+H3) -> 5788.235294 | J3: 1500 | K3: 1500 | L3: =I3-J3 -> 4288.235294 | M3: =G3+H3-K3 -> 4500 | N3: 0.0425 | O3: =IF(I3>B3,"Achtung: Bewertete Leistung ist höher als die Auftragssumme","") -> 
A4: Projekt 2 | B4: 98000 | D4: 50 | E4: 2666.666667 | F4: 3000 | G4: =E4+F4 -> 5666.666667 | H4: -2000 | I4: 3313.72549 | L4: =I4-J4 -> 3313.72549 | M4: =G4+H4-K4 -> 3666.666667 | N4: 0.05782312925
A5: Projekt 3 | B5: 150000 | D5: 100 | E5: 5333.333333 | F5: 6000 | G5: 11333.33333 | I5: 10627.45098 | L5: 10627.45098 | M5: 11333.33333 | N5: 0.07555555556
A6: Projekt 4 | B6: 25000 | D6: 10 | E6: 533.3333333 | F6: 600 | G6: 1133.333333 | I6: 1062.745098 | L6: 1062.745098 | M6: 1133.333333 | N6: 0.04533333333
E7: 0 | F7: 0 | G7: 0 | I7: 0 | L7: 0 | M7: 0
E8: 0 | F8: 0 | G8: 0 | I8: 0 | L8: 0 | M8: 0
E9: 0 | F9: 0 | G9: 0 | I9: 0 | L9: 0 | M9: 0
E10: 0 | F10: 0 | G10: 0 | I10: 0 | L10: 0 | M10: 0
E11: 0 | F11: 0 | G11: 0 | I11: 0 | L11: 0 | M11: 0
E12: 0 | F12: 0 | G12: 0 | I12: 0 | L12: 0 | M12: 0
E13: 0 | F13: 0 | G13: 0 | I13: 0 | L13: 0 | M13: 0
E14: 0 | F14: 0 | G14: 0 | I14: 0 | L14: 0 | M14: 0
E15: 0 | F15: 0 | G15: 0 | I15: 0 | L15: 0 | M15: 0
E16: 0 | F16: 0 | G16: 0 | I16: 0 | L16: 0 | M16: 0
E17: 0 | F17: 0 | G17: 0 | I17: 0 | L17: 0 | M17: 0
E18: 0 | F18: 0 | G18: 0 | I18: 0 | M18: 0
E19: 0 | F19: 0 | G19: 0 | I19: 0 | L19: 0 | M19: 0
E20: 0 | F20: 0 | G20: 0 | I20: 0 | L20: 0 | M20: 0
E21: 0 | F21: 0 | G21: 0 | I21: 0 | L21: 0 | M21: 0
E22: 0 | F22: 0 | G22: 0 | I22: 0 | L22: 0 | M22: 0
E23: 0 | F23: 0 | G23: 0 | I23: 0 | L23: 0 | M23: 0
E24: 0 | F24: 0 | G24: 0 | I24: 0 | L24: 0 | M24: 0
E25: 0 | F25: 0 | G25: 0 | I25: 0 | L25: 0 | M25: 0
E26: 0 | F26: 0 | G26: 0 | I26: 0 | L26: 0 | M26: 0
E27: 0 | F27: 0 | G27: 0 | I27: 0 | L27: 0 | M27: 0
E28: 0 | F28: 0 | G28: 0 | I28: 0 | L28: 0 | M28: 0
E29: 0 | F29: 0 | G29: 0 | I29: 0 | L29: 0 | M29: 0
E30: 0 | F30: 0 | G30: 0 | I30: 0 | L30: 0 | M30: 0
E31: 0 | F31: 0 | G31: 0 | I31: 0 | L31: 0 | M31: 0
E32: 0 | F32: 0 | G32: 0 | I32: 0 | L32: 0 | M32: 0
E33: 0 | F33: 0 | G33: 0 | I33: 0 | L33: 0 | M33: 0
E34: 0 | F34: 0 | G34: 0 | I34: 0 | L34: 0 | M34: 0 | N34: =IF(B34>0,G34/B34,"") -> 
E35: =D35*Materialeinsatz_pro_Stunde -> 0 | F35: =D35*Rohertrag_pro_Stunde -> 0 | G35: 0 | I35: =IF(C35="",E35+H35+F35*(1-Abschlag),G35+H35) -> 0 | L35: 0 | M35: 0 | O35: =IF(I35>B35,"Achtung: Bewertete Leistung ist höher als die Auftragssumme","") -> 
E36: 0 | F36: 0 | G36: 0 | I36: 0 | L36: 0 | M36: 0
E37: 0 | F37: 0 | G37: 0 | I37: 0 | L37: 0 | M37: 0
E38: 0 | F38: 0 | G38: 0 | I38: 0 | L38: 0 | M38: 0
E39: 0 | F39: 0 | G39: 0 | I39: 0 | L39: 0 | M39: 0
E40: 0 | F40: 0 | G40: 0 | I40: 0 | L40: 0 | M40: 0
E41: 0 | F41: 0 | G41: 0 | I41: 0 | L41: 0 | M41: 0
E42: 0 | F42: 0 | G42: 0 | I42: 0 | L42: 0 | M42: 0
E43: 0 | F43: 0 | G43: 0 | I43: 0 | L43: 0 | M43: 0
E44: 0 | F44: 0 | G44: 0 | I44: 0 | L44: 0 | M44: 0
E45: 0 | F45: 0 | G45: 0 | I45: 0 | L45: 0 | M45: 0
E46: 0 | F46: 0 | G46: 0 | I46: 0 | L46: 0 | M46: 0
E47: 0 | F47: 0 | G47: 0 | I47: 0 | L47: 0 | M47: 0
E48: 0 | F48: 0 | G48: 0 | I48: 0 | L48: 0 | M48: 0
E49: 0 | F49: 0 | G49: 0 | I49: 0 | L49: 0 | M49: 0
E50: 0 | F50: 0 | G50: 0 | I50: 0 | L50: 0 | M50: 0
E51: 0 | F51: 0 | G51: 0 | I51: 0 | L51: 0 | M51: 0
E52: 0 | F52: 0 | G52: 0 | I52: 0 | L52: 0 | M52: 0
E53: 0 | F53: 0 | G53: 0 | I53: 0 | L53: 0 | M53: 0
E54: 0 | F54: 0 | G54: 0 | I54: 0 | L54: 0 | M54: 0
E55: 0 | F55: 0 | G55: 0 | I55: 0 | L55: 0 | M55: 0
E56: 0 | F56: 0 | G56: 0 | I56: 0 | L56: 0 | M56: 0
E57: 0 | F57: 0 | G57: 0 | I57: 0 | L57: 0 | M57: 0
E58: 0 | F58: 0 | G58: 0 | I58: 0 | L58: 0 | M58: 0
E59: 0 | F59: 0 | G59: 0 | I59: 0 | L59: 0 | M59: 0
E60: 0 | F60: 0 | G60: 0 | I60: 0 | L60: 0 | M60: 0
E61: 0 | F61: 0 | G61: 0 | I61: 0 | L61: 0 | M61: 0
E62: 0 | F62: 0 | G62: 0 | I62: 0 | L62: 0 | M62: 0
E63: 0 | F63: 0 | G63: 0 | I63: 0 | L63: 0 | M63: 0
E64: 0 | F64: 0 | G64: 0 | I64: 0 | L64: 0 | M64: 0
E65: 0 | F65: 0 | G65: 0 | I65: 0 | L65: 0 | M65: 0
E66: 0 | F66: 0 | G66: 0 | I66: 0 | L66: 0 | M66: 0 | N66: =IF(B66>0,G66/B66,"") -> 
E67: =D67*Materialeinsatz_pro_Stunde -> 0 | F67: =D67*Rohertrag_pro_Stunde -> 0 | G67: 0 | I67: =IF(C67="",E67+H67+F67*(1-Abschlag),G67+H67) -> 0 | L67: 0 | M67: 0 | O67: =IF(I67>B67,"Achtung: Bewertete Leistung ist höher als die Auftragssumme","") -> 
E68: 0 | F68: 0 | G68: =E68+F68 -> 0 | I68: 0 | L68: =I68-J68 -> 0 | M68: =G68+H68-K68 -> 0
E69: 0 | F69: 0 | G69: 0 | I69: 0 | L69: 0 | M69: 0
E70: 0 | F70: 0 | G70: 0 | I70: 0 | L70: 0 | M70: 0
E71: 0 | F71: 0 | G71: 0 | I71: 0 | L71: 0 | M71: 0
E72: 0 | F72: 0 | G72: 0 | I72: 0 | L72: 0 | M72: 0
E73: 0 | F73: 0 | G73: 0 | I73: 0 | L73: 0 | M73: 0
E74: 0 | F74: 0 | G74: 0 | I74: 0 | L74: 0 | M74: 0
E75: 0 | F75: 0 | G75: 0 | I75: 0 | L75: 0 | M75: 0
E76: 0 | F76: 0 | G76: 0 | I76: 0 | L76: 0 | M76: 0
E77: 0 | F77: 0 | G77: 0 | I77: 0 | L77: 0 | M77: 0
E78: 0 | F78: 0 | G78: 0 | I78: 0 | L78: 0 | M78: 0
E79: 0 | F79: 0 | G79: 0 | I79: 0 | L79: 0 | M79: 0
E80: 0 | F80: 0 | G80: 0 | I80: 0 | L80: 0 | M80: 0
E81: 0 | F81: 0 | G81: 0 | I81: 0 | L81: 0 | M81: 0
E82: 0 | F82: 0 | G82: 0 | I82: 0 | L82: 0 | M82: 0
E83: 0 | F83: 0 | G83: 0 | I83: 0 | L83: 0 | M83: 0
E84: 0 | F84: 0 | G84: 0 | I84: 0 | L84: 0 | M84: 0
E85: 0 | F85: 0 | G85: 0 | I85: 0 | L85: 0 | M85: 0
E86: 0 | F86: 0 | G86: 0 | I86: 0 | L86: 0 | M86: 0
E87: 0 | F87: 0 | G87: 0 | I87: 0 | L87: 0 | M87: 0
E88: 0 | F88: 0 | G88: 0 | I88: 0 | L88: 0 | M88: 0
E89: 0 | F89: 0 | G89: 0 | I89: 0 | L89: 0 | M89: 0
E90: 0 | F90: 0 | G90: 0 | I90: 0 | L90: 0 | M90: 0
E91: 0 | F91: 0 | G91: 0 | I91: 0 | L91: 0 | M91: 0
E92: 0 | F92: 0 | G92: 0 | I92: 0 | L92: 0 | M92: 0
E93: 0 | F93: 0 | G93: 0 | I93: 0 | L93: 0 | M93: 0
E94: 0 | F94: 0 | G94: 0 | I94: 0 | L94: 0 | M94: 0
E95: 0 | F95: 0 | G95: 0 | I95: 0 | L95: 0 | M95: 0
E96: 0 | F96: 0 | G96: 0 | I96: 0 | L96: 0 | M96: 0
E97: 0 | F97: 0 | G97: 0 | I97: 0 | L97: 0 | M97: 0
E98: 0 | F98: 0 | G98: 0 | I98: 0 | L98: 0 | M98: 0
E99: =D99*Materialeinsatz_pro_Stunde -> 0 | F99: 0 | G99: 0 | I99: =IF(C99="",E99+H99+F99*(1-Abschlag),G99+H99) -> 0 | L99: 0 | M99: 0
